[Event "MCCT Oslo Esports Cup 2022"]
[Site "Oslo"]
[Date "2022.04.20"]
[Round "1.2"]
[White "Carlsen, Magnus"]
[Black "Duda, Jan-Krzysztof"]
[Result "1/2-1/2"]
[ECO "A00"]
[WhiteElo "2864"]
[BlackElo "2750"]
[Annotator "TA"]
[PlyCount "123"]
[EventDate "2022.04.14"]
[EventType "tourn"]
[EventCountry "NOR"]
[SourceTitle "playchess.com"]
[Source "ChessBase"]
[SourceQuality "1"]
[TimeControl "1500+10"]

{[%evp 9,123,-68,-60,-62,-93,-86,-29,-21,0,0,0,0,0,0,7,17,69,36,29,0,0,0,0,24,0,0,25,0,62,-14,-18,-13,-6,-12,-14,-39,-21,-10,-29,-24,0,0,0,0,13,14,13,15,20,8,8,6,8,7,13,14,15,11,14,18,79,51,66,72,114,83,58,0,0,0,0,0,0,0,0,0,0,0,0,0,0,0,0,0,0,0,0,0,0,0,0,0,0,0,0,0,0,0,0,0,0,-28000,-28000,-28000,-28000,-28000,-28000,-28000,-28000,-28000,-28000,-28000,-28000,-28000,-28000,-28000]} 1. f3 {[%emt 0:10:00]} e5 {[%emt 0:10:00]} 2. Nc3 {[%emt 0:00:02]} Nf6 {[%emt 0:00:25]} 3. e4 {[%emt 0:00:24][%cal Be2e4,Be4e5][%mdl 32]} Bc5 {[%emt 0:00:19]} 4. Na4 {[%emt 0:02:33] [#]} Be7 $146 {[%emt 0:02:35]} ({Predecessor:} 4... b6 5. Nxc5 bxc5 6. Nh3 h6 7. c4 Nc6 8. d3 Rb8 9. b3 O-O 10. Be3 d6 {0-1 (30) Schulz,J-Meyer,M freechess.de 2016}) 5. d4 {[%emt 0:01:24]} exd4 $1 {[%emt 0:00:06]} 6. e5 {[%emt 0:00:38] A00: Irregular Openings.} Nd5 {[%emt 0:00:25]} 7. Qxd4 {[%emt 0:00:04] [#]} Nb4 {[%emt 0:00:02]} (7... Nb6 $1 $17 {Threatens to win with ...Nc6.} 8. Qe4 Nxa4 9. Qxa4 O-O) 8. Qf2 $11 {[%emt 0:00:58] Black has an edge.} d6 {[%emt 0:00:26]} 9. a3 {[%emt 0:00:18]} N4c6 {[%emt 0:00:07]} 10. exd6 $1 {[%emt 0:00:01]} Qxd6 {[%emt 0:00:18]} 11. Ne2 {[%emt 0:02:22]} O-O {[%emt 0:02:23]} 12. Bf4 {[%emt 0:00:17]} Qg6 {[%emt 0:04:02]} (12... Ne5 $11) 13. O-O-O {[%emt 0:00:04]} b5 $1 {[%emt 0:00:03]} 14. Nac3 {[%emt 0:00:03]} b4 {[%emt 0:00:00]} 15. Nd5 {[%emt 0:00:45]} bxa3 {[%emt 0:00:15]} 16. Nxe7+ {[%emt 0:00:01]} Nxe7 {[%emt 0:00:00]} 17. bxa3 {[%emt 0:00:01]} Nbc6 {[%emt 0:00:41]} 18. Qc5 {[%emt 0:00:10]} Ba6 {[%emt 0:02:13]} (18... Qf6 $1 $11 19. Bxc7 Be6) 19. Nc3 {[%emt 0:01:13]} (19. Bxc7 $14 Qh6+ 20. Bf4) 19... Bxf1 {[%emt 0:00:09]} 20. Rhxf1 {[%emt 0:00:00]} Qxg2 {[%emt 0:00:59]} 21. Bxc7 {[%emt 0:01:47]} Rfc8 {[%emt 0:00:29]} 22. Bd6 {[%emt 0:00:29] [#] Strongly threatening Rf2.} Ng6 {[%emt 0:00:05][%cal Oc6e5]} (22... Nd8 $2 23. Qe3 Ndc6 24. Bxe7 $18) 23. Rf2 {[%emt 0:00:10]} Qh3 {[%emt 0:00:02][%cal Oc6e5]} 24. Nd5 {[%emt 0:00:14]} Nd8 {[%emt 0:00:29][%cal Bc6d8,Bd8e6,Be6c5,Bc5e4,Be4f2][%mdl 32]} (24... Nce7 $5 25. Nxe7+ Nxe7 $11) 25. Qe3 {[%emt 0:00:23] White threatens Qe8+ and mate.} Ne6 {[%emt 0:00:05]} 26. f4 {[%emt 0:00:07]} Qxe3+ {[%emt 0:01:09]} 27. Nxe3 {[%emt 0:00:02] And now f5 would win.} Nc5 $1 {[%emt 0:00:00]} 28. f5 {[%emt 0:00:47]} Ne4 {[%emt 0:00:35]} 29. fxg6 {[%emt 0:00:11]} Nxf2 {[%emt 0:00:01]} 30. Rf1 {[%emt 0:00:01]} hxg6 {[%emt 0:00:10] Hoping for ...Ne4.} 31. Rxf2 {[%emt 0:00:02] Black must now prevent Nd5.} Rc6 {[%emt 0:00:06]} 32. Bb4 {[%emt 0:00:21] next Nd5 is good for White.} Rd8 {[%emt 0:00:45] Against Nd5} 33. Rd2 {[%emt 0:01:19]} Rxd2 {[%emt 0:00:12]} 34. Kxd2 {[%emt 0:00:00]} g5 {[%emt 0:00:01]} (34... f5 $11) 35. c4 {[%emt 0:00:04][%cal Bc2c4,Bc4c5][%mdl 32]} (35. Nf5 $5 {[%cal Rf5e7]} Kh7 36. Kd3 $14) 35... Rh6 {[%emt 0:00:04]} 36. Kd3 {[%emt 0:00:44]} (36. c5 $5 {[%cal Re3f5]}) 36... f6 {[%emt 0:00:59]} 37. c5 {[%emt 0:00:10] aiming for Nf5. &Bianco is more active.} Kf7 {[%emt 0:00:02]} 38. Nf5 {[%emt 0:00:57]} (38. Kc4 $1 $14) 38... Rxh2 {[%emt 0:00:09]} 39. c6 {[%emt 0:00:04]} Ke6 {[%emt 0:00:07]} 40. Nxg7+ {[%emt 0:00:59]} Kd5 {[%emt 0:00:01]} 41. c7 {[%emt 0:00:03]} Rh3+ {[%emt 0:00:03]} 42. Kd2 {[%emt 0:00:20]} Rh2+ {[%emt 0:00:10]} 43. Kd3 {[%emt 0:00:07]} Rh3+ {[%emt 0:00:02]} 44. Kc2 {[%emt 0:00:00]} Rh8 {[%emt 0:00:11]} 45. Be7 {[%emt 0:00:17] Bd8 is the strong threat.} Rc8 {[%emt 0:00:28]} 46. Bd8 {[%emt 0:00:13]} g4 {[%emt 0:00:03]} 47. Kd3 {[%emt 0:00:03]} Kc6 {[%emt 0:00:38]} (47... g3 $2 48. Nh5 $18) 48. Ne8 {[%emt 0:00:12]} f5 {[%emt 0:00:06][%cal Bf6f5,Bf5f4][%mdl 32]} 49. Ke3 {[%emt 0:00:02]} g3 {[%emt 0:00:11]} 50. Kf3 {[%emt 0:00:02]} f4 {[%emt 0:00:00]} 51. a4 {[%emt 0:00:57]} Kd7 {[%emt 0:00:29]} 52. Nf6+ {[%emt 0:00:03]} Kc6 {[%emt 0:00:05]} 53. Nh5 {[%emt 0:00:08]} Rxc7 {[%emt 0:00:07]} 54. Bxc7 {[%emt 0:00:00]} Kxc7 {[%emt 0:00:00]} 55. Nxf4 $2 {[%emt 0:00:00][%mdl 12288] Endgame KN-KPP} (55. Ng7 $11) 55... Kb6 {[%emt 0:00:02] Mate.} 56. Nd3 {[%emt 0:00:10]} Ka5 {[%emt 0:00:06]} 57. Ne5 {[%emt 0:00:00]} Kxa4 {[%emt 0:00:01]} 58. Nc6 {[%emt 0:00:00]} a6 {[%emt 0:00:02]} 59. Nb8 {[%emt 0:00:02]} g2 {[%emt 0:00:04]} 60. Kxg2 {[%emt 0:00:01]} a5 {[%emt 0:00:01]} 61. Nc6 {[%emt 0:00:01]} Kb5 {[%emt 0:00:00]} 62. Nxa5 {[%emt 0:00:01][%mdl 32768] Weighted Error Value: White=0.22 (precise) /Black=0.09 (flawless) . An unexpected result.} 1/2-1/2

[Event "MCCT Oslo Esports Cup 2022"]
[Site "Oslo"]
[Date "2022.04.20"]
[Round "1.2"]
[White "Le, Quang Liem"]
[Black "Mamedyarov, Shakhriyar"]
[Result "0-1"]
[ECO "E51"]
[WhiteElo "2709"]
[BlackElo "2771"]
[Annotator "TA"]
[PlyCount "168"]
[EventDate "2022.04.14"]
[EventType "tourn"]
[EventCountry "NOR"]
[SourceTitle "playchess.com"]
[Source "ChessBase"]
[SourceQuality "1"]
[TimeControl "1500+10"]

{[%evp 47,168,-83,-64,-81,-41,-39,-30,-46,-36,-49,-33,-35,0,-125,-30,-142,-129,-170,-169,-169,-138,-180,-185,-215,-104,-141,-132,-147,-58,-51,-45,-114,-33,-68,-73,-88,-88,-268,-107,-202,-196,-210,-173,-173,-168,-167,-8,-386,-387,-386,-352,-441,-356,-349,-206,-207,-206,-200,-197,-192,-175,-221,-176,-176,-133,-142,-80,-91,0,-147,-144,-139,-117,-117,-117,-212,-157,-163,-161,-161,-138,-131,-128,-130,-128,-131,-118,-168,-156,-162,-130,-175,-169,-185,-178,-175,-170,-182,-173,-199,-203,-511,-443,-483,-382,-435,-399,-1089,-967,-29960,-11580,-29971,-29972,-29972,-29973,-29973,-29974,-29975,-29976,-29974,-29975,-29973,-12728]} 1. d4 {[%emt 0:10:00]} Nf6 {[%emt 0:10:00]} 2. c4 {[%emt 0:00:05]} e6 {[%emt 0:00:04]} 3. Nf3 {[%emt 0:00:04]} d5 {[%emt 0:00:03]} 4. Nc3 {[%emt 0:00:01]} Bb4 {[%emt 0:00:05]} 5. Qa4+ {[%emt 0:00:02]} Nc6 {[%emt 0:00:02]} 6. e3 {[%emt 0:00:00]} O-O {[%emt 0:00:04]} 7. Qc2 {[%emt 0:00:02]} dxc4 {[%emt 0:00:17]} 8. Bxc4 {[%emt 0:00:00]} Bd6 {[%emt 0:00:27]} 9. O-O {[%emt 0:00:05]} e5 {[%emt 0:00:20]} 10. h3 {[%emt 0:00:03]} a6 {[%emt 0:00:20]} 11. a3 {[%emt 0:00:48]} Bd7 {[%emt 0:01:39]} 12. Bd2 {[%emt 0:00:47]} exd4 {[%emt 0:00:52]} 13. exd4 {[%emt 0:00:03]} Qc8 {[%emt 0:00:01]} 14. Ne4 {[%emt 0:01:09]} Bxh3 {[%emt 0:01:13]} 15. Nxd6 {[%emt 0:06:10]} Qg4 {[%emt 0:01:14]} 16. Ne1 {[%emt 0:00:02]} Nxd4 {[%emt 0:00:53]} 17. Qd1 {[%emt 0:00:04]} cxd6 {[%emt 0:00:16]} 18. Bc3 {[%emt 0:00:39]} Nc6 {[%emt 0:02:01]} 19. Be2 {[%emt 0:05:27]} Qg5 {[%emt 0:00:59]} 20. Bxf6 {[%emt 0:00:23]} gxf6 {[%emt 0:00:02]} 21. Rc1 {[%emt 0:00:01]} Kh8 {[%emt 0:01:16]} 22. Rc3 {[%emt 0:00:03]} Be6 {[%emt 0:00:31]} 23. Qxd6 {[%emt 0:00:12]} Rfd8 {[%emt 0:02:17]} 24. Qh2 {[%emt 0:00:03]} Qe5 {[%emt 0:00:02]} 25. Rg3 {[%emt 0:00:39]} Rg8 {[%emt 0:00:21]} (25... Qxe2 26. Qh6 Bg4 27. Qxf6+ Kg8 28. Nc2 $11) 26. Bd3 {[%emt 0:00:04]} f5 {[%emt 0:00:00]} 27. Nf3 {[%emt 0:00:15]} Qf6 {[%emt 0:00:01]} 28. Rh3 {[%emt 0:00:13]} Rg7 {[%emt 0:00:12]} 29. Rh6 $1 {[%emt 0:00:54]} Qxb2 {[%emt 0:00:30]} (29... Nd4 $5 {[%cal Rd4f3]} 30. Be4 Nxf3+ 31. Bxf3 Qxb2 $17) 30. Re1 {[%emt 0:01:16]} (30. Qh5 $11 {remains equal.}) 30... Kg8 {[%emt 0:01:11]} (30... Qxa3 $2 31. Ng5 $1 {[%mdl 512]} Kg8 32. Rxh7 $1 Rxh7 33. Qxh7+ Kf8 34. Nxe6+ fxe6 35. Rxe6 $1 Qa1+ 36. Bf1 $18) (30... Rd8 $1 $17 {[%cal Rd8d3]} 31. Bf1 Kg8) 31. Qf4 {[%emt 0:00:14]} (31. Qh5 $11 {keeps the balance.}) 31... Rg4 $17 {[%emt 0:00:28]} (31... Qxa3 32. Bxf5 Bxf5 33. Qxf5 $17) 32. Qc7 {[%emt 0:00:10]} Rc8 {[%emt 0:00:50]} (32... Qxa3 33. Rexe6 Qxd3 34. Rxh7 $1 $11) 33. Qh2 {[%emt 0:00:02]} Qg7 {[%emt 0:00:37]} (33... Qxa3 34. Rxh7 Qc3 35. Re5 Qc1+ 36. Re1 $11) 34. Rh5 {[%emt 0:00:03]} Ne7 $1 {[%emt 0:00:21]} 35. Ne5 {[%emt 0:00:02]} Rg5 {[%emt 0:00:05]} (35... Rd4 $19 {...f6 is the strong threat.} 36. Rh4 Rxh4 37. Qxh4 Ng6) 36. Rxg5 {[%emt 0:00:34]} Qxg5 {[%emt 0:00:00]} 37. Nf3 {[%emt 0:00:11]} Qg7 {[%emt 0:00:09]} (37... Qf6 $17 38. Qd6 Ng6) 38. Qd6 $15 {[%emt 0:00:14]} Qf8 {[%emt 0:00:45]} 39. Ng5 {[%emt 0:00:08]} (39. Qb6 $15) 39... Rc6 {[%emt 0:00:07]} (39... Ng6 $1 $17 40. Qh2 Qg7) 40. Qg3 {[%emt 0:00:05]} Ng6 $1 {[%emt 0:00:03]} ({Much weaker is} 40... Qg7 41. Qb8+ Nc8 42. Nxe6 $11) 41. Qh3 {[%emt 0:00:13]} h6 {[%emt 0:00:04]} 42. Nf3 $2 {[%emt 0:00:00]} (42. Nxe6 $17 fxe6 43. Bb1) 42... f4 $2 {[%emt 0:00:44]} (42... Qxa3 $19 43. Bxf5 Bxf5 44. Re8+ Kg7 45. Qxf5 Rc1+ 46. Kh2 Qd6+ 47. g3 b5) 43. Qh2 {[%emt 0:00:19]} (43. Qh5 $17 Rc5 44. Ne5 Nxe5 45. Rxe5 Rxe5 46. Qxe5) 43... Rd6 $19 {[%emt 0:00:04]} 44. Be4 {[%emt 0:00:11]} Bd5 {[%emt 0:00:09]} 45. Qh5 {[%emt 0:00:12]} Bxe4 {[%emt 0:00:10]} 46. Rxe4 {[%emt 0:00:00]} Qg7 $2 {[%emt 0:00:20]} ({Black should play} 46... b5 $19 {White must now prevent ...Rc6.} 47. Re1 Kg7) 47. g3 $2 {[%emt 0:00:06][%mdl 8192]} (47. Re8+ $11 {and White stays safe.} Nf8 48. Kh2) 47... fxg3 $19 {[%emt 0:00:10]} 48. fxg3 {[%emt 0:00:04]} Qa1+ {[%emt 0:00:17]} ({But not} 48... Qb2 $2 49. Qc5 Rd3 50. Re3 $19) 49. Kg2 {[%emt 0:00:24]} Qa2+ {[%emt 0:00:07]} 50. Kh3 {[%emt 0:00:02]} Qd5 {[%emt 0:00:14]} (50... Qxa3 $142 51. Qxh6 Ne5 $1 {[%mdl 512]} 52. Qg5+ Rg6 53. Qxe5 Qxf3 54. Qe8+ Kg7 55. Qe5+ Qf6) 51. Qxd5 $19 {[%emt 0:00:30]} Rxd5 {[%emt 0:00:00]} 52. a4 {[%emt 0:00:02]} Kf8 {[%emt 0:00:07]} 53. Rb4 {[%emt 0:00:03]} Rd7 {[%emt 0:00:06]} 54. Nd4 {[%emt 0:00:07]} (54. g4 $142) 54... Ne7 {[%emt 0:00:02]} 55. Nb3 {[%emt 0:00:06]} Nd5 {[%emt 0:00:07]} 56. Rd4 {[%emt 0:00:06] [#]} Nf6 {[%emt 0:00:34]} (56... b6 $142 $1 {Strongly threatening ...a5.} 57. a5 bxa5) 57. Rb4 $17 {[%emt 0:00:01]} Nd5 {[%emt 0:00:07]} ({Better is} 57... h5 58. Nc5 Rd5 59. Nxb7 Kg7) 58. Rd4 $17 {[%emt 0:00:02] [#]} b6 $1 {[%emt 0:00:07]} 59. a5 {[%emt 0:00:02]} bxa5 {[%emt 0:00:20]} 60. Nc5 {[%emt 0:00:29]} Rd8 {[%emt 0:00:04]} 61. Ra4 {[%emt 0:00:08]} (61. g4 $17) 61... Nc7 {[%emt 0:00:11]} 62. Nb3 {[%emt 0:00:10]} Rd5 {[%emt 0:00:12]} 63. Nxa5 {[%emt 0:00:02]} Rh5+ {[%emt 0:00:00]} 64. Kg2 {[%emt 0:00:02]} Rb5 {[%emt 0:00:01]} 65. Nc6 {[%emt 0:00:07]} Rb6 {[%emt 0:00:05]} 66. Nd4 {[%emt 0:00:05]} Ne8 {[%emt 0:00:19]} 67. Kf3 {[%emt 0:00:49]} (67. Nf5 $17 {was worth a try.}) 67... Nd6 $19 {[%emt 0:00:25]} 68. Kf4 {[%emt 0:00:11]} Ke7 {[%emt 0:00:11]} 69. Ke5 {[%emt 0:00:02]} Kd7 {[%emt 0:00:02]} 70. Kd5 {[%emt 0:00:08]} Nb7 {[%emt 0:00:08]} 71. Ra1 {[%emt 0:00:10]} a5 {[%emt 0:00:05]} 72. Rf1 {[%emt 0:00:10]} Nd8 {[%emt 0:00:26]} 73. Ra1 {[%emt 0:00:08]} Ne6 {[%emt 0:00:02]} 74. Nxe6 $2 {[%emt 0:00:32]} (74. Ne2) 74... fxe6+ $19 {[%emt 0:00:02]} ({Weaker is} 74... Rxe6 75. Rxa5 Ke7 76. Kd4 $17) 75. Kc5 {[%emt 0:00:00]} Ra6 {[%emt 0:00:11]} 76. Kb5 {[%emt 0:00:11]} Ra8 {[%emt 0:00:02]} 77. Rd1+ $2 {[%emt 0:00:33]} (77. Ra4 e5 78. Kc4) 77... Ke7 $19 {[%emt 0:00:08]} 78. Rh1 {[%emt 0:00:00]} a4 {[%emt 0:00:20]} 79. Rxh6 {[%emt 0:00:02]} a3 {[%emt 0:00:02]} 80. Rh1 {[%emt 0:00:01]} a2 {[%emt 0:00:05]} 81. Ra1 {[%emt 0:00:01]} Kf6 {[%emt 0:00:01]} 82. Kc4 {[%emt 0:00:00]} Kf5 {[%emt 0:00:03]} 83. Kd4 {[%emt 0:00:26]} Kg4 {[%emt 0:00:13]} 84. Ke5 {[%emt 0:00:13]} Ra6 {[%emt 0:00:02]} 0-1

[Event "MCCT Oslo Esports Cup 2022"]
[Site "Oslo"]
[Date "2022.04.20"]
[Round "1.2"]
[White "Praggnanandhaa R"]
[Black "Van Foreest, Jorden"]
[Result "1/2-1/2"]
[ECO "D12"]
[WhiteElo "2624"]
[BlackElo "2714"]
[Annotator "TA"]
[PlyCount "84"]
[EventDate "2022.04.14"]
[EventType "tourn"]
[EventCountry "NOR"]
[SourceTitle "playchess.com"]
[Source "ChessBase"]
[SourceQuality "1"]
[TimeControl "1500+10"]

{[%evp 12,84,29,41,78,86,85,89,95,37,39,6,25,9,8,12,14,-22,-3,-19,-26,-33,-29,-37,-20,-62,-66,-64,-67,-68,-69,-68,0,-25,44,31,52,64,66,63,58,60,59,75,111,79,145,102,106,107,136,94,89,92,80,44,44,44,44,44,44,20,30,30,42,40,57,57,57,0,25,0,0,0,0]} 1. d4 {[%emt 0:10:00]} d5 {[%emt 0:10:00]} 2. c4 {[%emt 0:00:03]} c6 {[%emt 0:00:02]} 3. Nf3 {[%emt 0:00:02]} Nf6 {[%emt 0:00:02]} 4. e3 {[%emt 0:00:01]} Bf5 {[%emt 0:00:03]} 5. Nc3 {[%emt 0:00:02]} e6 {[%emt 0:00:02]} 6. Nh4 {[%emt 0:00:01]} Bg4 {[%emt 0:00:07]} 7. Qb3 {[%emt 0:00:04] Threatens to win with h3.} dxc4 $5 {[%emt 0:00:10][%mdl 4] Leaves trodden paths. D12: Slav Defence: 3 Nf3 Nf6 4 e3 Bf5.} 8. Qxb7 {[%emt 0:02:05]} Nbd7 {[%emt 0:00:02]} 9. h3 {[%emt 0:00:57]} (9. Bxc4 $6 Nd5 $11) 9... Bh5 {[%emt 0:00:04] [#] White is better.} 10. g4 $146 {[%emt 0:00:46]} ({Much weaker is} 10. Bxc4 Nd5 $11) ({White should play} 10. Qxc6 $16 Bb4 11. Nf3 (11. Bxc4 Rc8 $17) (11. Qxc4 Nd5 $15)) ({Predecessor:} 10. Qxc6 Rc8 11. Qa4 Be7 12. Bxc4 {1-0 (12) Harris,J (1383)-Gamba,J (800) LSS email 2010}) 10... Nd5 $1 $14 {[%emt 0:00:08][%cal Od5b4] [#]} 11. a3 {[%emt 0:05:34] Prevents Nb4.} Rc8 {[%emt 0:02:26]} 12. gxh5 {[%emt 0:00:34] Strongly threatening Nf3.} Rc7 {[%emt 0:00:02]} 13. Qa6 {[%emt 0:00:07] Hoping for Nf3.} Qxh4 {[%emt 0:00:02]} 14. Bxc4 {[%emt 0:00:55]} Be7 {[%emt 0:00:39]} 15. Bd2 {[%emt 0:00:07]} (15. h6 $5) 15... O-O {[%emt 0:00:13]} 16. Be2 {[%emt 0:00:33]} N7f6 {[%emt 0:03:08]} 17. Bf3 {[%emt 0:00:46]} Rb8 {[%emt 0:01:07]} 18. b4 {[%emt 0:00:39]} Nxc3 {[%emt 0:01:05]} 19. Bxc3 {[%emt 0:00:02]} Ne4 {[%emt 0:00:00]} 20. Bxe4 {[%emt 0:00:07]} Qxe4 {[%emt 0:00:00]} 21. Rg1 {[%emt 0:02:00]} Bf6 {[%emt 0:00:17]} (21... Rb5 $1 $15) 22. Rg4 {[%emt 0:00:39]} Qc2 {[%emt 0:02:01]} (22... Qf3 $11) 23. Bd2 $1 {[%emt 0:00:02]} Qf5 {[%emt 0:01:05]} 24. Qe2 {[%emt 0:00:37]} e5 {[%emt 0:00:04]} 25. dxe5 {[%emt 0:00:06]} Bxe5 {[%emt 0:00:03]} 26. Rc1 {[%emt 0:00:01][%cal Ba1c1,Bc1c5,Bc5a5][%mdl 32]} Rd8 {[%emt 0:00:09]} 27. Kf1 {[%emt 0:00:23]} Qe6 {[%emt 0:02:35]} 28. Be1 {[%emt 0:00:20]} Qb3 {[%emt 0:01:01]} ({Better is} 28... f5 29. Rgc4 f4 30. exf4 Qxh3+ 31. Kg1 Bf6) 29. Kg2 {[%emt 0:00:33]} Qxa3 {[%emt 0:00:08]} 30. Rc5 {[%emt 0:00:28]} Qa1 {[%emt 0:00:08]} 31. Ra5 {[%emt 0:00:13]} Qb2 {[%emt 0:00:08]} 32. Qxb2 {[%emt 0:00:48]} Bxb2 {[%emt 0:00:00]} 33. b5 {[%emt 0:00:26]} cxb5 {[%emt 0:02:32]} 34. Rxb5 {[%emt 0:00:02]} Bc3 {[%emt 0:00:00]} 35. Bxc3 {[%emt 0:00:02]} Rxc3 {[%emt 0:00:00][%mdl 4096] Endgame KRR-KRR} 36. Rb7 {[%emt 0:00:21]} h6 {[%emt 0:00:12]} 37. Rf4 {[%emt 0:00:14]} Rf8 {[%emt 0:00:01]} 38. Rf5 {[%emt 0:00:15]} a6 {[%emt 0:00:05]} 39. Ra7 {[%emt 0:00:06]} Rc6 {[%emt 0:00:02]} 40. Ra5 {[%emt 0:00:04]} ({White should try} 40. Kg3 $14) 40... Rd8 {[%emt 0:00:23]} 41. R7xa6 {[%emt 0:00:14]} Rxa6 {[%emt 0:00:03]} 42. Rxa6 {[%emt 0:00:04]} Rd5 {[%emt 0:00:02] Against Ra5.  Weighted Error Value: White=0.14 (very precise) /Black=0.15 (very precise)} 1/2-1/2

[Event "MCCT Oslo Esports Cup 2022"]
[Site "Oslo"]
[Date "2022.04.20"]
[Round "1.2"]
[White "Hansen, Eric"]
[Black "Giri, Anish"]
[Result "1/2-1/2"]
[ECO "B90"]
[WhiteElo "2606"]
[BlackElo "2773"]
[Annotator "TA"]
[PlyCount "44"]
[EventDate "2022.04.14"]
[EventType "tourn"]
[EventCountry "NOR"]
[SourceTitle "playchess.com"]
[Source "ChessBase"]
[SourceQuality "1"]
[TimeControl "1500+10"]

{[%evp 13,44,15,19,0,0,0,0,0,0,0,0,0,0,0,0,0,0,-7,0,-39,-37,-41,0,0,0,0,0,-11,0,0,0,-17,0]} 1. e4 {[%emt 0:10:00]} c5 {[%emt 0:10:00]} 2. Nf3 {[%emt 0:00:02]} d6 {[%emt 0:00:01]} 3. d4 {[%emt 0:00:05]} cxd4 {[%emt 0:00:01]} 4. Nxd4 {[%emt 0:00:01]} Nf6 {[%emt 0:00:01]} 5. Nc3 {[%emt 0:00:00]} a6 {[%emt 0:00:01]} 6. Be3 {[%emt 0:00:32]} e5 {[%emt 0:00:12]} 7. Nb3 {[%emt 0:00:04]} Be7 {[%emt 0:00:11][%cal Bf8e7,Be7d8,Bd8h4,Bh4f2][%mdl 32]} 8. h3 {[%emt 0:00:03] B90: Sicilian Najdorf: Unusual White 6th moves, 6 Be3 Ng4 and 6 Be3 e5.} Be6 {[%emt 0:00:14]} 9. g4 {[%emt 0:00:37]} d5 {[%emt 0:00:19]} 10. exd5 {[%emt 0:00:03]} Nxd5 {[%emt 0:00:00]} 11. Bg2 {[%emt 0:00:16]} Nxe3 {[%emt 0:00:08]} 12. Qxd8+ {[%emt 0:00:05]} Bxd8 {[%emt 0:00:03]} 13. fxe3 {[%emt 0:00:03]} Bh4+ {[%emt 0:00:13]} 14. Ke2 {[%emt 0:00:19]} Bc4+ {[%emt 0:00:24] This bishop pair is nice.} 15. Kd2 {[%emt 0:00:12]} Nc6 {[%emt 0:00:22] [#] Prevents Na5.} 16. Rad1 $146 {[%emt 0:01:34]} ({Predecessor:} 16. Bxc6+ bxc6 17. Na5 Be6 18. Nxc6 f6 19. Nb4 O-O-O+ 20. Ke2 Bc4+ 21. Nd3 e4 22. Nxe4 {1-0 (40) Vavulin,M (2390)-Gordievsky,D (2444) Moscow 2014}) 16... O-O-O+ {[%emt 0:01:01]} 17. Kc1 {[%emt 0:00:14]} Bf2 {[%emt 0:00:45]} 18. Rxd8+ $1 {[%emt 0:00:16] The position is equal.} Rxd8 {[%emt 0:00:03]} 19. Nd1 {[%emt 0:00:02]} Bh4 {[%emt 0:00:09]} 20. Nc3 {[%emt 0:01:31]} Bf2 {[%emt 0:00:15]} 21. Nd1 {[%emt 0:00:03]} Bh4 {[%emt 0:00:01]} 22. Nc3 {[%emt 0:00:01]} Bf2 {[%emt 0:00:17] Weighted Error Value: White=0.05 (flawless) /Black=0.04 (flawless)} 1/2-1/2